bitfinex/quotes_ETHUSD_20250526
["timestamp","ask_amount","ask_price","bid_price","bid_amount"]
[1748266276222,4.665,2565.9,2565.4,0.7882]
[1748266277797,4.665,2565.9,2565.5,4.56001059]
[1748266284352,4.665,2565.9,2565.7,4.56001059]
[1748266286726,0.1,2565.9,2565.7,4.56001059]
[1748266290154,0.1,2565.9,2565.5,4.56001059]
[1748266290315,0.1,2565.9,2565.6,0.53482106]
[1748266292132,0.1,2565.9,2565.7,0.37194466]
[1748266292752,0.1,2565.9,2565.8,4.56001059]
[1748266293620,0.1,2565.9,2565.8,4.93195525]
[1748266294128,0.1,2565.9,2565.8,0.37194466]
[1748266306460,0.1,2565.9,2565.8,1.2555014]
[1748266306660,0.1,2565.9,2565.8,9.2555014]
[1748266307183,0.1,2565.9,2565.8,10.0744014]
[1748266308262,0.1,2565.9,2565.8,9.2555014]
[1748266311053,0.1,2565.9,2565.8,10.0828014]
[1748266312187,0.1,2565.9,2565.8,1.2555014]
[1748266312568,0.1,2565.9,2565.8,6.64281199]
[1748266312769,0.1,2565.9,2565.8,14.64281199]
[1748266316194,0.1,2565.9,2565.8,9.2555014]
[1748266317484,0.1,2565.9,2565.8,9.7221908]
[1748266318394,0.1,2565.9,2565.8,14.28220139]
[1748266318556,0.1,2565.9,2565.8,15.10960139]
[1748266318760,0.1,2565.9,2565.8,14.64291199]
[1748266322401,0.1,2565.9,2565.8,19.32291199]
[1748266323568,9.2626,2566.8,2565.9,8.0]
[1748266323783,9.2626,2566.8,2566.3,8.0]
[1748266324399,9.2626,2566.8,2566.1,8.0]
[1748266324621,9.2626,2566.8,2566.4,0.37194466]
[1748266324767,0.8076,2566.6,2566.4,0.37194466]
[1748266325802,8.449,2566.5,2566.4,0.37194466]
[1748266326470,13.81661059,2566.5,2566.4,0.37194466]
[1748266327487,13.81661059,2566.5,2566.1,0.37194466]
[1748266327672,9.2566,2566.5,2566.1,0.37194466]
[1748266328866,0.8073,2566.4,2566.1,0.37194466]
[1748266329092,0.8073,2566.4,2565.7,0.46586974]
[1748266329307,0.8073,2566.4,2565.7,1.83057374]
[1748266329968,5.36731059,2566.4,2565.7,1.83057374]
[1748266330168,0.7802,2566.4,2565.7,1.83057374]
[1748266330396,4.56001059,2566.3,2565.7,0.46586974]
[1748266330603,0.7802,2566.2,2565.8,0.37298452]
[1748266330803,3.895,2566.1,2565.8,0.37298452]
[1748266330992,4.542,2566.0,2565.8,0.37298452]
[1748266331671,4.542,2566.0,2565.9,0.37298452]
[1748266333407,8.437,2566.0,2565.9,0.37298452]
[1748266334009,0.7802,2566.2,2565.9,0.37298452]
[1748266334172,3.895,2566.0,2565.9,0.37298452]
[1748266335197,5.27635814,2566.0,2565.9,0.37298452]
[1748266335406,4.6659,2566.0,2565.9,0.37298452]
[1748266336296,9.2079,2566.0,2565.9,0.37298452]
[1748266336623,0.7709,2566.0,2565.5,0.37298452]
[1748266336791,3.895,2565.9,2565.5,8.37298452]
[1748266336992,3.895,2565.9,2565.6,1.29329951]
[1748266337946,3.895,2565.9,2565.7,0.37298452]
[1748266339724,0.7709,2566.0,2565.5,0.7884]
[1748266339929,3.895,2565.9,2565.5,0.7884]
[1748266340828,3.895,2565.9,2565.3,1.27716974]
[1748266341130,3.895,2565.9,2565.6,0.37273977]
[1748266341854,4.56001059,2565.8,2565.6,0.37273977]
[1748266341997,0.7854,2565.7,2565.6,0.37273977]
[1748266342422,0.7854,2565.7,2564.8,2.39002451]
[1748266342589,4.56001059,2565.6,2564.8,2.39002451]
[1748266342797,3.895,2565.5,2564.9,1.03900245]
[1748266343700,3.895,2565.4,2564.9,1.03900245]
[1748266343905,0.8042,2565.2,2564.9,1.03900245]
[1748266344144,0.8042,2565.2,2565.0,0.37257481]
[1748266344835,4.542,2565.3,2565.0,0.37257481]
[1748266344836,3.895,2565.1,2565.0,0.37257481]
[1748266345938,4.543,2565.3,2565.0,0.37257481]
[1748266345939,3.895,2565.2,2565.0,0.37257481]
[1748266347240,3.895,2565.2,2565.1,0.37257481]
[1748266348806,3.895,2565.2,2564.7,0.39512492]
[1748266349005,3.895,2565.2,2564.8,0.96351947]
[1748266349616,5.3127,2565.7,2565.1,4.56001059]
[1748266349833,3.896,2565.6,2565.1,4.56001059]
[1748266350031,3.896,2565.6,2564.9,5.69857573]
[1748266350231,9.2087,2565.7,2565.0,0.66620952]
[1748266350739,4.56001059,2565.5,2564.9,0.37206514]
[1748266351040,5.31131059,2565.3,2564.9,0.37206514]
[1748266351207,0.7513,2565.1,2564.9,0.37206514]
[1748266351535,0.7513,2565.1,2564.4,0.46586974]
[1748266351939,5.31131059,2565.1,2564.4,0.46586974]
[1748266353044,5.31131059,2565.1,2564.3,0.7828]
[1748266353045,3.896,2565.0,2564.3,5.34281059]
[1748266353246,3.896,2564.9,2564.3,5.34281059]
[1748266353629,8.0,2565.3,2564.5,4.56001059]
[1748266353630,0.8233,2565.3,2564.5,4.56001059]
[1748266353830,3.896,2565.2,2564.6,0.53726106]
[1748266354436,3.896,2565.1,2564.6,0.53726106]
[1748266355122,3.896,2565.1,2564.7,0.37203969]
[1748266355829,3.896,2565.1,2564.8,0.37203969]
[1748266357350,3.896,2565.1,2564.7,0.37203969]
[1748266357553,3.896,2565.1,2564.7,1.71897082]
[1748266358413,3.896,2565.1,2564.8,0.37203969]
[1748266360651,4.544,2565.3,2565.0,4.56001059]
[1748266360863,0.7839,2565.5,2565.0,4.56001059]
[1748266361012,4.528,2565.5,2565.1,0.45600106]
[1748266361216,8.424,2565.5,2565.2,0.7724]
[1748266361417,4.528,2565.5,2565.2,0.7724]
[1748266361728,8.424,2565.5,2565.2,0.7724]
[1748266362451,8.424,2565.5,2565.3,0.37203969]
[1748266363955,8.424,2565.5,2565.1,0.37203969]
[1748266364176,0.52278593,2567.4,2565.6,3.59690374]
[1748266364406,7.32249627,2568.0,2567.4,0.7665]
[1748266364407,3.1419947,2567.8,2567.4,0.7665]
[1748266364580,3.1419947,2567.8,2567.7,4.56001059]
[1748266364723,3.1419947,2567.8,2567.1,0.58893552]
[1748266364926,3.1419947,2567.8,2567.0,0.7665]
[1748266365159,2.54662352,2567.8,2567.7,0.37203969]
[1748266365430,8.1554105,2567.8,2567.7,0.37203969]
[1748266365758,5.00895316,2567.8,2567.7,0.37203969]
[1748266366178,2.54662352,2567.8,2567.4,0.62115965]
[1748266366689,6.013,2567.7,2567.4,0.62115965]
[1748266367272,6.013,2567.7,2567.5,0.37050984]
[1748266367567,2.54662352,2567.8,2567.5,0.37050984]
[1748266367863,6.013,2567.6,2567.5,0.37050984]
[1748266368031,6.013,2567.6,2567.0,1.15320738]
[1748266368565,6.013,2567.6,2566.9,0.46586974]
[1748266369473,6.013,2567.6,2566.7,0.7665]
[1748266370763,6.013,2567.6,2566.8,0.36919887]
[1748266370971,5.80970422,2567.6,2566.8,0.36919887]
[1748266371732,5.80970422,2567.6,2566.7,0.7665]
[1748266371932,5.80970422,2567.6,2566.7,1.1595629]
[1748266372953,9.70370422,2567.6,2566.7,1.1595629]
[1748266375176,0.8028,2567.5,2566.7,1.1595629]
[1748266377770,0.05,2567.9,2566.7,1.1595629]
[1748266377771,0.8099,2567.8,2566.7,1.1595629]
[1748266378073,6.01,2567.4,2566.7,1.1595629]
[1748266379953,0.7805,2567.3,2566.7,0.3930629]
[1748266380251,0.7805,2567.3,2566.4,8.0]
[1748266380651,0.7805,2567.3,2566.7,8.0]
[1748266383891,0.7805,2567.3,2566.7,8.39493302]
[1748266384191,0.751,2567.8,2566.9,9.46166293]
[1748266384394,6.01,2567.2,2566.9,10.27296293]
[1748266384795,0.751,2567.8,2566.9,10.27296293]
[1748266384990,9.903,2567.7,2566.9,10.27296293]
[1748266385294,0.751,2567.8,2567.2,9.46166293]
[1748266385491,9.903,2567.7,2567.2,9.46166293]
[1748266385800,6.01,2567.6,2567.2,9.46166293]
[1748266386507,6.01,2567.6,2567.0,8.0]
[1748266386704,0.05,2567.9,2567.6,8.7987]
[1748266388001,0.05,2567.9,2567.6,10.62473629]
[1748266388713,0.05,2567.9,2567.7,0.36866225]
[1748266391183,0.8564,2567.9,2567.7,0.36866225]
[1748266391888,3.893,2567.8,2567.7,0.36866225]
[1748266392091,4.6585,2567.8,2567.7,0.36866225]
[1748266392296,4.6585,2567.8,2567.5,0.36866225]
[1748266392824,6.009,2567.7,2567.5,0.36866225]
[1748266393120,6.009,2567.7,2567.4,0.36866225]
[1748266394515,6.009,2567.6,2567.5,0.36866225]
[1748266395324,5.886,2567.6,2567.5,0.36866225]
[1748266395522,0.05,2567.9,2567.5,0.36866225]
[1748266395721,0.05,2567.9,2567.6,0.03894693]
[1748266395914,0.05,2567.9,2567.5,0.36866225]
[1748266396293,0.05,2567.9,2567.8,0.46586974]
[1748266397227,0.8652,2567.9,2567.8,0.46586974]
[1748266397390,0.8652,2567.9,2567.8,0.36866225]
[1748266398395,4.7582,2567.9,2567.8,0.36866225]
[1748266399031,10.6442,2567.9,2567.3,0.46586974]
[1748266399327,9.779,2567.8,2567.3,0.46586974]
[1748266399739,3.893,2567.7,2567.3,0.46586974]
[1748266400603,3.893,2567.7,2567.4,0.37200168]
[1748266402048,3.893,2567.7,2567.5,0.37200168]
[1748266402912,0.8026,2567.6,2567.5,0.37200168]
[1748266403650,0.8026,2567.6,2567.0,0.46586974]
[1748266404649,0.8026,2567.6,2567.1,0.37205836]
[1748266404966,5.887,2567.5,2567.1,0.37205836]
[1748266405163,3.893,2567.4,2567.1,0.37205836]
[1748266405925,3.893,2567.4,2567.2,0.37205836]
[1748266406120,0.8119,2567.3,2567.2,0.37205836]
[1748266409161,1.3619,2567.3,2567.2,0.37205836]
[1748266409520,10.3869,2567.3,2567.2,0.37205836]
[1748266412830,10.3879,2567.3,2567.2,0.37205836]
[1748266414936,0.8119,2567.3,2567.2,0.37205836]
[1748266415276,10.3879,2567.3,2567.2,0.37205836]
[1748266415578,0.8119,2567.3,2567.2,0.37205836]
[1748266415976,10.3879,2567.3,2567.2,0.37205836]
[1748266418000,19.84956293,2567.3,2567.2,0.37205836]
[1748266418975,19.84956293,2567.3,2566.4,0.7521]
[1748266419200,19.03766293,2567.3,2566.3,0.38010659]
[1748266419362,0.7607,2566.8,2566.2,0.46586974]
[1748266419557,8.7607,2566.6,2566.2,0.46586974]
[1748266419763,0.7607,2566.5,2566.2,0.46586974]
[1748266419975,8.0,2566.3,2565.8,0.46586974]
[1748266420401,0.7607,2566.2,2565.8,0.46586974]
[1748266420562,8.0,2566.0,2565.8,0.46586974]
[1748266420764,0.7607,2565.9,2565.8,0.46586974]
[1748266421269,0.7607,2565.9,2565.2,0.7946]
[1748266421488,0.7607,2565.9,2565.1,2.02415477]
[1748266421489,0.7607,2565.7,2565.1,2.02415477]
[1748266421888,0.7607,2565.7,2565.3,1.92415477]
[1748266422092,18.27056293,2565.4,2565.3,1.92415477]
[1748266422409,27.84856293,2565.4,2565.3,1.92415477]
[1748266422698,18.9369,2565.4,2565.3,1.92415477]
[1748266424191,8.8089,2565.4,2565.3,1.92415477]
[1748266424389,18.3869,2565.4,2565.3,1.92415477]
[1748266425893,8.8089,2565.4,2565.3,1.92415477]
[1748266426085,18.1889,2565.4,2565.3,1.92415477]
[1748266426684,10.1889,2565.4,2565.1,0.1]
[1748266426884,0.8089,2565.4,2565.1,0.1]
[1748266427098,9.38,2565.3,2565.1,0.1]
[1748266428078,0.8089,2565.4,2565.1,0.1]
[1748266428279,9.381,2565.3,2565.1,0.1]
[1748266429314,9.381,2565.2,2565.1,0.1]
[1748266430986,0.8089,2565.4,2565.1,0.1]
[1748266431320,9.381,2565.3,2565.1,0.1]
[1748266432392,9.382,2565.2,2565.1,0.1]
[1748266433489,5.486,2565.2,2565.1,0.1]
[1748266433691,0.7997,2565.7,2565.1,0.1]
[1748266434001,5.486,2565.2,2565.1,0.1]
[1748266434210,9.382,2565.2,2565.1,0.1]
[1748266434391,9.383,2565.2,2565.1,0.1]
[1748266435135,0.7997,2565.7,2565.1,0.1]
[1748266435425,5.487,2565.2,2565.1,0.1]
[1748266436004,0.7997,2565.7,2565.1,0.1]
[1748266436203,9.383,2565.6,2565.1,0.1]
[1748266436404,3.896,2565.5,2565.1,0.1]
[1748266436795,5.487,2565.6,2565.1,0.1]
[1748266436990,3.896,2565.5,2565.1,0.1]
[1748266437929,5.487,2565.6,2565.1,0.1]
[1748266438125,3.896,2565.5,2565.1,0.1]
[1748266438428,3.896,2565.5,2565.2,0.37137594]
[1748266439139,8.412,2565.8,2565.2,0.37137594]
[1748266439340,9.383,2565.7,2565.3,0.83138245]
[1748266439673,9.383,2565.7,2565.3,0.7924]
[1748266440962,9.383,2565.7,2565.4,0.37136215]
[1748266442160,5.487,2565.7,2565.5,0.37136215]
[1748266442357,9.383,2565.7,2565.5,0.37136215]
[1748266443345,9.383,2565.7,2565.4,0.37136215]
[1748266443935,8.412,2565.8,2565.4,0.37136215]
[1748266444132,9.172,2565.7,2565.4,0.37136215]
[1748266445179,9.172,2565.7,2565.5,0.37136215]
[1748266445979,5.276,2565.7,2565.5,0.37136215]
[1748266446276,9.172,2565.7,2565.6,0.37136215]
[1748266447388,9.172,2565.7,2565.4,0.37136215]
[1748266448385,9.172,2565.7,2565.5,0.37136215]
[1748266448929,9.171,2565.6,2565.5,0.37136215]
[1748266449777,9.171,2565.6,2565.3,0.37136215]
[1748266449946,0.7528,2565.5,2565.3,0.37136215]
[1748266451177,0.7528,2565.5,2565.2,0.37136215]
[1748266451834,0.7528,2565.5,2565.1,0.1]
[1748266452032,0.7681,2565.2,2565.1,0.1]
[1748266452245,13.2141,2565.2,2565.1,0.1]
[1748266452443,5.2141,2565.2,2565.1,0.1]
[1748266453447,11.6591,2565.2,2565.1,0.1]
[1748266453649,0.7993,2564.7,2563.9,0.46586974]
[1748266453852,9.172,2564.6,2563.9,0.46586974]
[1748266454163,10.22196293,2564.5,2563.9,0.46586974]
[1748266454351,0.7603,2564.5,2563.9,0.46586974]
[1748266454546,9.172,2564.4,2563.9,0.46586974]
[1748266455196,9.172,2564.4,2563.5,0.8248]
[1748266455410,9.174,2564.3,2563.5,0.8248]
[1748266455809,0.7603,2564.5,2563.5,10.28646293]
[1748266456104,0.7603,2564.5,2563.6,8.0]
[1748266456313,9.174,2564.4,2564.1,0.8912]
[1748266456507,9.174,2564.3,2564.1,0.8912]
[1748266456873,5.277,2564.3,2564.1,0.8912]
[1748266458777,5.277,2564.3,2564.1,0.1]
[1748266462020,0.7566,2564.7,2564.1,0.1]
[1748266462319,9.174,2564.6,2564.2,0.7689]
[1748266462477,9.174,2564.5,2564.2,0.7689]
[1748266462915,9.174,2564.5,2564.2,1.1402091]
[1748266464411,9.174,2564.5,2564.2,0.7689]
[1748266465119,0.817,2565.0,2564.2,0.7689]
[1748266465298,9.174,2564.9,2564.2,0.7689]
[1748266465699,0.817,2565.0,2564.2,0.7689]
[1748266466098,9.174,2565.0,2564.6,0.7689]
[1748266466406,9.174,2565.0,2564.6,2.59195629]
[1748266468728,9.174,2565.0,2564.6,0.7689]
[1748266469531,0.817,2564.9,2564.3,0.7689]
[1748266471901,0.817,2564.9,2564.1,0.1]
[1748266473546,9.46166293,2564.8,2564.1,0.1]
[1748266473730,0.8285,2564.7,2564.1,0.1]
[1748266475619,8.975,2564.6,2564.2,0.7637]
[1748266475947,8.975,2564.5,2564.2,0.7637]
[1748266477443,7.89,2565.4,2564.2,0.7637]
[1748266477444,1.3484,2565.3,2564.2,8.7637]
[1748266477639,8.975,2565.2,2564.3,2.20477319]
[1748266477874,0.7984,2565.3,2564.4,8.8226]
[1748266478031,8.975,2565.1,2564.4,8.8226]
[1748266478539,5.078,2565.1,2564.4,8.8226]
[1748266478739,3.897,2565.0,2564.5,1.10273732]
[1748266478949,3.897,2565.0,2564.5,1.47497422]
[1748266480165,3.897,2565.0,2564.6,0.3722369]
[1748266481392,3.897,2565.0,2564.4,0.8226]
[1748266482678,3.897,2565.0,2564.5,0.37299395]
[1748266483576,5.078,2565.1,2564.5,0.37299395]
[1748266483881,3.897,2565.0,2564.5,0.37299395]
[1748266484372,3.897,2565.0,2564.6,0.37299395]
[1748266485378,3.897,2565.0,2564.7,0.37299395]
[1748266486578,4.55746903,2564.8,2564.4,0.8226]
[1748266486747,8.45446903,2565.0,2564.4,0.8226]
[1748266487343,0.8215,2564.9,2564.3,0.46586974]
[1748266487542,0.8215,2564.9,2564.5,0.37324236]
[1748266488041,0.8215,2564.9,2564.6,0.37324236]
[1748266488245,4.55746903,2564.8,2564.6,0.37324236]
[1748266489264,4.55746903,2564.8,2564.3,0.37324236]
[1748266490666,4.55746903,2564.8,2564.4,0.37324236]
[1748266490869,4.55746903,2564.6,2564.4,0.37324236]
[1748266491181,3.897,2564.5,2564.4,0.37324236]
[1748266492260,3.897,2564.5,2564.1,0.1]
[1748266493760,0.8215,2564.9,2564.1,0.1]
[1748266493999,8.783,2564.8,2564.2,0.824]
[1748266494376,8.783,2564.7,2564.2,0.824]
[1748266494703,8.783,2564.7,2564.3,0.37314295]
[1748266495712,8.783,2564.7,2564.2,0.824]
[1748266497265,8.783,2564.6,2564.2,0.824]
[1748266498305,8.783,2564.6,2564.3,0.37315802]
[1748266498711,3.897,2564.5,2564.3,0.37315802]
[1748266499007,8.783,2564.5,2564.3,0.37315802]
[1748266499696,8.783,2564.5,2564.4,0.37315802]
[1748266502115,4.55746903,2565.1,2564.4,0.37315802]
[1748266502293,1.95219654,2565.4,2564.7,4.55746903]
[1748266502489,4.886,2565.1,2564.7,5.1299852]
[1748266502692,8.783,2565.1,2564.8,8.7791]
[1748266503078,8.783,2565.1,2564.8,0.7791]
[1748266503404,4.55746903,2565.0,2564.4,0.37315802]
[1748266503707,8.783,2565.1,2564.9,0.37315802]
[1748266503903,5.37866903,2565.0,2564.9,0.37315802]
[1748266504841,0.8212,2565.0,2564.5,0.7791]
[1748266505046,8.783,2564.9,2564.5,0.7791]
[1748266506136,8.783,2564.9,2564.6,0.37317666]
[1748266507217,8.783,2564.9,2564.5,0.7791]
[1748266508647,8.783,2564.9,2564.2,0.46586974]
[1748266508648,8.783,2564.9,2564.3,0.8097]
[1748266508960,10.28654022,2564.8,2564.2,0.46586974]
[1748266509336,0.8068,2564.8,2564.1,0.1]
[1748266510439,0.8068,2564.8,2564.2,0.37323951]
[1748266511071,0.8068,2564.8,2564.1,0.1]
[1748266511960,8.783,2564.7,2564.1,0.1]
[1748266512546,8.783,2564.6,2564.1,0.1]
[1748266513288,8.783,2564.6,2564.2,0.37324923]
[1748266513775,8.783,2564.6,2564.1,0.1]
[1748266515655,3.897,2564.5,2564.1,0.1]
[1748266516897,3.897,2564.5,2564.2,0.37332676]
[1748266518404,3.897,2564.5,2564.1,0.1]
[1748266520499,0.7865,2564.4,2564.1,0.1]
[1748266524662,8.605,2564.3,2564.1,0.1]
[1748266524894,3.898,2564.2,2564.1,0.1]
[1748266536902,4.707,2564.3,2564.1,0.1]
[1748266537101,3.898,2564.2,2564.1,0.1]
[1748266537395,0.7865,2564.4,2564.1,0.1]
[1748266537618,8.605,2564.3,2564.1,0.1]
[1748266539737,8.605,2564.2,2564.1,0.1]
[1748266540914,4.56057219,2564.5,2564.1,0.1]
[1748266541106,8.605,2564.2,2564.1,0.1]
[1748266546233,9.924,2564.2,2564.1,0.1]
[1748266547643,36.81657219,2564.2,2564.1,0.03045814]
[1748266547790,32.256,2564.2,2564.1,0.03045814]
[1748266548130,32.64906416,2564.2,2564.1,0.03045814]
[1748266549221,19.94106416,2564.2,2564.1,0.03045814]
[1748266549431,33.10763635,2564.2,2564.1,0.03045814]
[1748266550857,24.50163635,2564.2,2564.1,0.03045814]
[1748266551035,33.10763635,2564.2,2564.1,0.03045814]
[1748266551434,24.50163635,2564.2,2564.1,0.03045814]
[1748266551658,22.37557219,2564.2,2564.1,0.03045814]
[1748266551831,8.659,2564.2,2564.1,0.03045814]
[1748266552035,16.496,2564.2,2564.1,0.03045814]
[1748266552237,7.89,2564.2,2564.1,0.03045814]
[1748266552560,16.497,2564.2,2564.1,0.03045814]
[1748266552756,7.89,2564.2,2564.1,0.03045814]
[1748266552961,16.497,2564.2,2564.1,0.03045814]
[1748266553255,12.598,2564.2,2564.1,0.03045814]
[1748266553420,16.497,2564.2,2563.7,0.7889]
[1748266553622,16.497,2564.2,2563.7,1.66779]
[1748266553959,16.497,2564.2,2563.7,0.7889]
[1748266554919,8.607,2564.2,2563.7,0.7889]
[1748266556763,13.16757219,2564.2,2563.7,0.7889]
[1748266557962,4.56057219,2564.2,2563.7,0.7889]
[1748266558261,8.602,2564.1,2563.7,0.7889]
[1748266559246,4.56057219,2564.0,2563.3,0.8062]
[1748266559553,4.56057219,2563.6,2563.3,0.8062]
[1748266559739,4.56057219,2563.6,2563.2,0.46586974]
[1748266559740,5.33867219,2563.4,2563.2,0.46586974]
[1748266559945,8.602,2563.3,2563.2,0.46586974]
[1748266560767,8.602,2563.3,2563.1,0.1]
[1748266560932,4.56057219,2563.2,2563.1,0.1]
[1748266561525,5.11057219,2563.2,2563.1,0.1]
[1748266561761,5.90407219,2563.2,2563.1,0.1]
[1748266562141,27.282755,2563.2,2563.1,0.1]
[1748266562435,26.82518281,2563.2,2563.1,0.1]
[1748266563174,22.72218281,2563.2,2563.1,0.1]
[1748266563331,26.82518281,2563.2,2563.1,0.1]
[1748266566068,22.72218281,2563.2,2563.1,0.1]
[1748266567375,31.32618281,2563.2,2563.1,0.1]
[1748266572370,18.16161062,2563.2,2563.1,0.1]
[1748266572570,25.8205,2563.2,2563.1,0.1]
[1748266572756,30.93107219,2563.2,2563.1,0.1]
[1748266572964,22.93107219,2563.2,2563.1,0.1]
[1748266575801,23.31764228,2563.2,2563.1,0.1]
[1748266576078,31.31764228,2563.2,2563.1,0.1]
[1748266578677,39.20764228,2563.2,2563.1,0.1]
[1748266578975,26.04207009,2563.2,2563.1,0.1]
[1748266579154,38.82107219,2563.2,2563.1,0.1]
[1748266579472,30.82107219,2563.2,2563.1,0.1]
[1748266580234,30.02757219,2563.2,2563.1,0.1]
[1748266580574,21.42257219,2563.2,2563.1,0.1]
[1748266580774,30.02757219,2563.2,2563.1,0.1]
[1748266582659,30.02857219,2563.2,2563.1,0.1]
[1748266589078,30.01657219,2563.2,2563.1,0.1]
[1748266589284,21.42257219,2563.2,2563.1,0.1]
[1748266589493,30.01657219,2563.2,2563.1,0.1]
[1748266589818,30.78417219,2563.2,2563.1,0.1]
[1748266590716,30.01657219,2563.2,2563.1,0.1]
[1748266594593,30.01557219,2563.2,2563.1,0.1]
[1748266595390,29.46557219,2563.2,2563.1,0.1]
[1748266595592,25.455,2563.2,2563.1,0.1]
[1748266595908,17.015,2563.2,2563.1,0.1]
[1748266596401,17.015,2563.2,2563.1,0.926]
[1748266596696,8.422,2563.2,2563.1,0.926]
[1748266596865,13.115,2563.2,2563.1,0.926]
[1748266597203,17.015,2563.2,2563.1,0.926]
[1748266597356,17.23345917,2563.2,2563.1,0.926]
[1748266599923,17.015,2563.2,2563.1,0.926]
[1748266600215,13.115,2563.2,2563.1,0.926]
[1748266600388,17.565,2563.2,2563.1,0.1]
[1748266600593,18.357,2563.2,2563.1,0.1]
[1748266601600,18.5751519,2563.2,2563.1,0.1]
[1748266605321,26.4651519,2563.2,2563.1,0.1]
[1748266605822,25.1231519,2563.2,2563.1,0.1]
[1748266609028,16.5301519,2563.2,2563.1,0.1]
[1748266609244,25.1231519,2563.2,2563.1,0.1]
[1748266610237,16.5301519,2563.2,2563.1,0.1]
[1748266610409,25.6731519,2563.2,2563.1,0.1]
[1748266610731,17.0801519,2563.2,2563.1,0.1]
[1748266611035,38.98752409,2563.2,2563.1,0.1]
[1748266611506,34.62684962,2563.2,2563.1,0.1]
[1748266612735,34.4269519,2563.2,2563.1,0.1]
[1748266613233,36.7659519,2563.2,2563.1,0.1]
[1748266613930,36.96581046,2563.2,2563.1,0.1]
[1748266614534,40.28314532,2563.2,2563.1,0.1]
[1748266615632,40.26814532,2563.2,2563.1,0.1]
[1748266616032,31.69014532,2563.2,2563.1,0.1]
[1748266616219,0.55,2562.9,2562.3,0.7854]
[1748266616538,0.2181519,2562.8,2562.3,0.7854]
[1748266617413,0.2181519,2562.7,2562.3,0.7854]
[1748266618101,0.2181519,2562.6,2562.3,0.7854]
[1748266618424,4.1191519,2562.6,2562.3,0.7854]
[1748266619035,3.901,2562.6,2562.3,0.7854]
[1748266619539,8.578,2562.5,2562.3,0.7854]
[1748266620602,4.56057219,2562.4,2562.3,0.7854]
[1748266620945,8.578,2562.5,2562.3,0.7854]
[1748266621103,0.2181519,2562.4,2562.3,0.7854]
[1748266621914,8.7961519,2562.5,2562.3,0.7854]
[1748266624657,8.578,2562.4,2562.3,0.7854]
[1748266625153,0.2181519,2562.5,2562.3,0.7854]
[1748266625333,8.578,2562.4,2562.3,0.7854]
[1748266627745,4.677,2562.4,2562.3,0.7854]
[1748266627917,8.578,2562.4,2562.3,0.7854]
[1748266628246,4.677,2562.4,2562.3,0.7854]
[1748266628451,8.578,2562.4,2562.3,0.7854]
[1748266629653,3.901,2562.4,2562.3,0.7854]
[1748266629869,4.677,2562.6,2562.3,0.7854]
[1748266630656,20.87257219,2563.2,2562.3,0.7854]
[1748266630833,4.677,2562.7,2562.3,0.7854]
[1748266631337,8.578,2562.7,2562.3,0.7854]
[1748266631724,8.578,2562.7,2562.5,0.753]
[1748266634459,8.578,2562.7,2562.2,0.7547]
[1748266635723,8.578,2562.7,2562.3,0.37357866]
[1748266636558,3.9,2562.6,2562.4,0.7615]
[1748266637053,3.9,2562.6,2562.4,1.13507866]
[1748266637555,20.87257219,2563.2,2562.4,1.13507866]
[1748266637891,8.576,2563.1,2562.4,1.13507866]
[1748266638468,8.576,2563.1,2562.5,0.37357866]
[1748266638974,20.87257219,2563.2,2562.5,0.37357866]
[1748266639130,4.676,2563.1,2562.6,0.8127229]
[1748266639321,8.422,2563.2,2562.7,0.57468738]
[1748266639535,8.422,2563.2,2562.8,0.7737]
[1748266639735,12.98257219,2563.2,2562.8,0.7737]
[1748266639978,4.56057219,2563.0,2562.6,1.13397866]
[1748266640269,3.9,2562.9,2562.6,1.13397866]
[1748266640784,3.9,2562.9,2562.7,0.37357866]
[1748266641290,3.9,2562.9,2562.6,0.7604]
[1748266645839,3.9,2562.9,2562.6,0.7104]
[1748266646240,3.9,2562.9,2562.7,0.37321089]
[1748266647609,3.9,2562.9,2562.6,0.7104]
[1748266649248,5.37907219,2562.8,2562.3,0.46586974]
[1748266649453,4.56057219,2562.6,2562.2,0.46586974]
[1748266649652,4.656,2562.5,2562.2,0.46586974]
[1748266649982,3.9,2562.4,2562.2,0.46586974]
[1748266650332,3.9,2562.4,2562.2,0.83912142]
[1748266650537,3.9,2562.4,2562.2,0.37325168]
[1748266651694,5.37907219,2562.8,2562.1,0.1]
[1748266651886,8.556,2562.7,2562.2,0.8109]
[1748266652092,8.556,2562.6,2562.2,0.8109]
[1748266652263,8.556,2562.6,2562.3,0.87539509]
[1748266653297,8.556,2562.6,2562.2,0.8109]
[1748266654060,8.556,2562.6,2562.3,0.37345448]
[1748266655598,8.556,2562.6,2562.4,0.37345448]
[1748266656462,8.556,2562.6,2562.3,0.37345448]
[1748266657804,8.556,2562.6,2562.1,0.1]
[1748266658300,4.656,2562.6,2562.1,0.1]
[1748266658507,8.556,2562.5,2562.2,0.8284]
[1748266658670,8.556,2562.5,2562.3,0.89284]
[1748266659910,8.556,2562.5,2562.4,0.37371712]
[1748266660968,9.106,2562.5,2562.1,0.1]
[1748266661173,5.36747219,2562.4,2562.1,0.1]
[1748266664014,0.8069,2562.4,2562.1,0.1]
[1748266664308,8.558,2562.3,2562.1,0.1]
[1748266664674,4.56057219,2562.7,2562.1,0.1]
[1748266664875,9.3397,2562.6,2562.1,0.1]